fUST/lending_fUST_20250928
["ID","MTS","AMOUNT","RATE_DAILY","PERIOD"]
[388173465,1759027838751,-883.56103632,0.00034499,7]
[388173467,1759027838761,-883.56103632,0.00034499,7]
[388173469,1759027838770,-883.56103632,0.00034499,7]
[388173471,1759027838779,-883.56103632,0.00034499,7]
[388173473,1759027838790,-883.56103632,0.00034499,7]
[388173475,1759027838799,-883.56103632,0.00034499,7]
[388173477,1759027838809,-883.56103632,0.00034499,7]
[388173478,1759027838819,-883.56103632,0.00034499,7]
[388173479,1759027838828,-883.56103632,0.00034499,7]
[388173480,1759027838837,-913.01307087,0.00034499,7]
[388173481,1759027838846,-913.01307087,0.00034499,7]
[388173482,1759027838856,-913.01307087,0.00034499,7]
[388173483,1759027838864,-913.01307087,0.00034499,7]
[388173484,1759027838873,-913.01307087,0.00034499,7]
[388173485,1759027838883,-913.01307087,0.00034499,7]
[388173486,1759027838893,-913.01307087,0.00034499,7]
[388173487,1759027838902,-913.01307087,0.00034499,7]
[388173488,1759027838911,-913.01307087,0.00034499,7]
[388173489,1759027838920,-189.35579204,0.00034499,7]
[388173490,1759027838930,-213292.59838794,0.000345,24]
[388173491,1759027838939,-209.304,0.00034507,5]
[388173492,1759027838948,-174.126,0.00034507,5]
[388173493,1759027838957,-500.0,0.0003452,120]
[388173494,1759027838966,-160.0,0.00034541,9]
[388173495,1759027838976,-1000.0,0.00034548,5]
[388173496,1759027838985,-515.38250462,0.00034548,5]
[388173497,1759027838995,-504.43611285,0.00034548,5]
[388173498,1759027839004,-2161.0,0.0003455,2]
[388173500,1759027839013,-635.0,0.0003455,2]
[388173502,1759027839023,-500.0,0.00034657,120]
[388173504,1759027839033,-410.84075698,0.00034657,7]
[388173506,1759027839043,-1000.0,0.00034662,5]
[388173508,1759027839052,-24736.001841,0.00034675,2]
[388173510,1759027839062,-350.24035506,0.00034685,30]
[388173512,1759027839072,-203.0,0.0003474,38]
[388173514,1759027839082,-500.0,0.00034794,120]
[388173516,1759027839092,-168.0,0.00034811,2]
[388173518,1759027839101,-390.611828,0.00034815,30]
[388173520,1759027839111,-390.611828,0.00034815,30]
[388173522,1759027839122,-390.611828,0.00034815,30]
[388173524,1759027839131,-350.24035506,0.00034849,30]
[388173526,1759027839141,-173.16,0.0003489,120]
[388173528,1759027839152,-500.0,0.00034906,7]
[388173530,1759027839162,-500.0,0.00034931,120]
[388173532,1759027839185,-168.0,0.00034978,2]
[388173533,1759027839194,-160.0,0.00034991,10]
[388173536,1759027839204,-372694.45870823,0.00035,10]
[388173577,1759027839584,-116.53288701,0.00035,10]
[388173757,1759027841325,-90460.864583,0.00035,10]
[388173799,1759027841722,-114.03342461,0.00035,10]
[388173856,1759027842268,-14501.690951,0.00035,10]
[388173860,1759027842290,-15560.79305775,0.00035,10]
[388174007,1759027843743,-11.40589826,0.00035,10]
[388174164,1759027845235,-18044.887901,0.00035,10]
[388174313,1759027846994,-2492.135664,0.00035,10]
[388175251,1759027975198,160.0,0.00024245,2]
[388175270,1759028434605,834.3094557,0.00024245,2]
[388175271,1759028438947,-500.0,0.00025205,2]
[388175272,1759028438975,-500.0,0.00025205,2]
[388175365,1759028790672,-1000.0,0.00027979,2]
[388175366,1759028790699,-1000.0,0.00027979,2]
[388175367,1759028790728,-1000.0,0.00027979,2]
[388175368,1759028790755,-300.0,0.00027997,2]
[388175369,1759028790783,-1200.0,0.00027998,2]
[388175370,1759028790812,-300.0,0.00027998,2]
[388175371,1759028790842,-100.01,0.00027998,2]
[388175372,1759028791145,-199.99,0.00027998,2]
[388175373,1759028791173,-278.0,0.00027998,2]
[388175374,1759028791202,-226.0,0.00027998,2]
[388175375,1759028791230,-300.0,0.00027998,2]
[388175376,1759028791258,-1455.67511338,0.00028207,2]
[388175377,1759028791286,-420.0,0.00030237,2]
[388175378,1759028791314,-500.0,0.00031519,7]
[388175379,1759028791340,-185.8005778,0.00031648,2]
[388175380,1759028791367,-1000.0,0.0003173,30]
[388175381,1759028791394,-160.0,0.0003182,2]
[388175382,1759028794547,-682.95040412,0.00031885,2]
[388175383,1759028794575,-500.0,0.00032,7]
[388175384,1759028794603,-500.0,0.00032185,7]
[388175385,1759028794631,-587.0,0.00032656,2]
[388175386,1759028794662,-500.0,0.00032876,120]
[388175387,1759028794689,-584.42566219,0.00032959,2]
[388175388,1759028794716,-150.0,0.00033,14]
[388175389,1759028794742,-500.0,0.00033013,120]
[388175390,1759028794768,-500.0,0.0003315,120]
[388175391,1759028794795,-491.25786738,0.00033287,120]
[388175394,1759028798872,-8.74213262,0.00033287,120]
[388175395,1759028798901,-500.0,0.00033424,120]
[388175396,1759028798929,-160.0,0.00033507,3]
[388175397,1759028798956,-500.0,0.00033561,120]
[388175398,1759028798984,-334.25818531,0.00033698,120]
[388175405,1759028837318,500.0,0.00032576,7]
[388175406,1759028848091,500.0,0.00032871,7]
[388175407,1759028848172,319.721843,0.00032877,2]
[388175411,1759028925084,506.752,0.00033795,60]
[388175445,1759029031802,-334.83659193,0.00033928,2]
[388175447,1759029031812,-566.82674917,0.00034219,30]
[388175452,1759029031856,-19.68245233,0.00034219,30]
[388175454,1759029031866,-553.53559885,0.00034219,30]
[388175662,1759029042946,-32.97360265,0.00034219,30]
[388175663,1759029042955,-586.5092015,0.00034219,30]
[388175664,1759029042964,-183.53201022,0.00034273,2]
[388175665,1759029042974,-400.0,0.00034299,2]
[388175666,1759029042983,-271.00222,0.000343,2]
[388175667,1759029042992,-422.9872888,0.000343,30]
[388175668,1759029043002,-593.8419346,0.000343,30]
[388175669,1759029043011,-324.6798798,0.000343,30]
[388175670,1759029043019,-1172.6346262,0.000343,30]
[388175671,1759029043029,-196.66817008,0.00034355,2]
[388175672,1759029043038,-160.0,0.00034357,2]
[388175673,1759029043047,-824.02762476,0.00034368,7]
[388175674,1759029043056,-824.02762476,0.00034368,7]
[388175675,1759029043066,-824.02762476,0.00034368,7]
[388175676,1759029043075,-824.02762476,0.00034368,7]
[388175677,1759029043085,-183.38373415,0.00034368,7]
[388175678,1759029043094,-824.02762476,0.00034368,7]
[388175679,1759029043103,-824.02762476,0.00034368,7]
[388175680,1759029043112,-824.02762476,0.00034368,7]
[388175681,1759029043121,-824.02762476,0.00034368,7]
[388175682,1759029043130,-824.02762476,0.00034368,7]
[388175683,1759029043139,-824.02762476,0.00034368,7]
[388175684,1759029043149,-824.02762476,0.00034368,7]
[388175685,1759029043163,-824.02762476,0.00034368,7]
[388175686,1759029043172,-251.20992045,0.00034368,7]
[388175712,1759029083538,602.72783462,0.00032301,120]
[388175713,1759029144055,500.0,0.00031209,7]
[388175714,1759029144422,500.0,0.00032038,7]
[388175715,1759029144764,500.0,0.00033578,7]
[388175716,1759029148238,500.0,0.00031423,7]
[388175717,1759029148640,500.0,0.00031964,7]
[388175719,1759029178972,233.82138094,0.00029,10]
[388175720,1759029187402,233.49652586,0.00029,10]
[388175721,1759029287056,189.35579204,0.00033698,2]
[388175722,1759029307660,189.35579204,0.00028,10]
[388175723,1759029309805,189.35579204,0.00028,10]
[388175724,1759029312594,189.35579204,0.00028,10]
[388175727,1759029389708,710.4050005,0.0003315,2]
[388175728,1759029441296,504.955176,0.00031086,7]
[388175729,1759029445831,500.0,0.00031691,7]
[388175730,1759029447182,500.0,0.0003224,7]
[388175731,1759029672674,160.0,0.00033698,2]
[388175732,1759029847580,233.82138094,0.00033698,2]
[388175733,1759029910759,189.35579204,0.00033698,2]
[388175754,1759029930946,189.35579204,0.00028,10]
[388175755,1759029933244,189.35579204,0.00028,10]
[388175765,1759029939563,303.73575,0.00032877,2]
[388175768,1759029941975,189.35579204,0.00028,10]
[388175776,1759030038766,190.0,0.00031612,7]
[388175777,1759030051656,1031.928,0.00028767,120]
[388175779,1759030104774,4313.71412857,0.000258,2]
[388175780,1759030111130,4464.36787143,0.000275,2]
[388175781,1759030111150,3287.08311407,0.000275,2]
[388175782,1759030114474,366.49426001,0.0002,2]
[388175783,1759030115010,6346.43262592,0.00015,2]
[388175784,1759030115031,10000.01,0.00015,2]
[388175785,1759030115051,2042.32807259,0.00015,2]
[388175786,1759030117977,1865.92459065,0.00026,2]
[388175788,1759030122217,1017.79128391,0.000225,2]
[388175789,1759030123870,318.53434608,0.00029,3]
[388175790,1759030124489,4755.43170677,0.00019063,7]
[388175791,1759030124515,10000.01,0.00019063,7]
[388175792,1759030124536,10000.01,0.00019063,7]
[388175793,1759030124559,7435.59560323,0.00019063,7]
[388175794,1759030138329,-152.0,0.00033928,2]
[388175795,1759030170115,280.51160609,0.00032,120]
[388175796,1759030171978,-152.0,0.00033928,2]
[388175798,1759030224022,-152.0,0.00033758,32]
[388175799,1759030226163,-172.36529745,0.00033758,32]
[388175801,1759030228984,-45.63470255,0.00033758,32]
[388175976,1759030270969,417.15472785,0.00033698,2]
[388175978,1759030350774,500.0,0.00031774,7]
[388175979,1759030352252,-284.65273696,0.00033835,7]
[388175980,1759030379559,-152.0,0.00033745,2]
[388175981,1759030393654,-51.20436369,0.00033745,2]
[388175986,1759031000691,-204.48031784,0.00029,10]
[388176713,1759031353115,-29.3410631,0.00029,10]
[388176743,1759031438100,-380.0,0.00031857,2]
[388176745,1759031438111,-160.0,0.00031914,2]
[388176747,1759031438121,-241.04,0.00031914,2]
[388176808,1759031443404,-469.3650005,0.00031914,2]
[388176809,1759031443413,-886.03172969,0.00032,3]
[388176810,1759031443423,-805.66394358,0.00032,120]
[388176811,1759031443435,-276.38107337,0.00032,120]
[388176812,1759031443445,-32.0579527,0.00032296,3]
[388176813,1759031443456,-367.9420473,0.00032296,3]
[388176814,1759031443465,-400.0,0.00032296,2]
[388176815,1759031443475,-300.0,0.00032296,3]
[388176816,1759031443485,-1600.0,0.00032296,3]
[388176817,1759031443494,-3893.29030846,0.00032297,2]
[388176818,1759031443503,-497.52231544,0.00032297,2]
[388176819,1759031443512,-500.0,0.00032297,2]
[388176820,1759031443520,-183.84590502,0.00032297,2]
[388176821,1759031443530,-500.0,0.00032297,2]
[388176822,1759031443539,-500.0,0.00032297,2]
[388176823,1759031443548,-500.0,0.00032297,2]
[388176824,1759031443557,-500.0,0.00032297,2]
[388176825,1759031443567,-576.66177162,0.00032297,2]
[388176826,1759031443576,-500.0,0.00032297,2]
[388176827,1759031443585,-487.54467626,0.00032297,2]
[388176828,1759031443595,-500.0,0.00032297,2]
[388176829,1759031443604,-1200.0,0.00032298,3]
[388176830,1759031443613,-1082.04501695,0.000323,120]
[388176831,1759031443622,-160.0,0.00032593,2]
[388176832,1759031443631,-1082.04501695,0.000326,120]
[388176833,1759031443641,-305.493337,0.00032877,2]
[388176834,1759031443650,-500.0,0.00032951,7]
[388176835,1759031443659,-1082.04501695,0.00033,120]
[388176836,1759031443668,-1000.0,0.00033,5]
[388176837,1759031443677,-1082.04501695,0.000333,120]
[388176838,1759031443688,-250.0,0.00033304,2]
[388176839,1759031443697,-549.5195611,0.000336,120]
[388176840,1759031443728,-532.52545585,0.000336,120]
[388176841,1759031443737,-155.29218006,0.000338,2]
[388176842,1759031443746,-151.0,0.00033902,7]
[388176843,1759031443755,-151.0,0.00033902,7]
[388176844,1759031443764,-1088.65664173,0.00033903,2]
[388176845,1759031443775,-565.99163167,0.00033903,2]
[388176968,1759031447190,-235.818122,0.00033899,7]
[388176969,1759031447199,-71.7919439,0.00033903,2]
[388176970,1759031447209,-164.9047197,0.00033928,37]
[388176971,1759031447219,-251.12744395,0.00033928,2]
[388176972,1759031447228,-151.0,0.00033997,7]
[388176973,1759031447236,-151.0,0.00033997,2]
[388176974,1759031447246,-236.69036893,0.00033997,7]
[388176975,1759031447255,-151.0,0.00033997,7]
[388176976,1759031447263,-500.0,0.00033997,7]
[388176977,1759031447272,-233.82138094,0.00033997,7]
[388176978,1759031447281,-151.0,0.00033998,7]
[388176979,1759031447290,-152.34984003,0.00033998,7]
[388176980,1759031447298,-151.0,0.00033999,7]
[388176981,1759031447307,-151.0,0.00033999,7]
[388176983,1759031447316,-1082.04501695,0.00034,120]
[388176985,1759031447325,-1884.13999576,0.00034,3]
[388177048,1759031605287,-152.0,0.00027368,2]
[388177049,1759031610667,-8.30752746,0.00027368,2]
[388177050,1759031752835,-189.35579204,0.00028,10]
[388177061,1759031982682,1000.0,0.00028767,120]
[388177063,1759032052900,900.0,0.00028767,120]
[388177066,1759032107195,834.3094557,0.00025252,2]
[388177110,1759032394000,155.0,0.0003379,60]
[388177112,1759032531411,231.81558965,0.00025252,2]
[388177115,1759032557100,-189.35579204,0.00028,10]
[388177116,1759032561098,952.66650071,0.00028,5]
[388177117,1759032566126,-116.74835891,0.00028,5]
[388177165,1759032632536,-190.0,0.00031936,7]
[388177167,1759032632545,-416.9004501,0.00031952,2]
[388177169,1759032632555,-649.22701016,0.00032,120]
[388177171,1759032632564,-261.57275484,0.00032167,2]
[388177173,1759032632572,-242.38,0.00032257,2]
[388177175,1759032632581,-400.0,0.00032266,2]
[388177178,1759032632591,-665.0,0.00032266,3]
[388177180,1759032632600,-1942.56031858,0.00032267,2]
[388177183,1759032632609,-1942.56031858,0.00032267,2]
[388177186,1759032632618,-1942.56031858,0.00032267,2]
[388177189,1759032632627,-1942.56031858,0.00032267,2]
[388177192,1759032632636,-1942.56031858,0.00032267,2]
[388177195,1759032632645,-1942.56031858,0.00032267,2]
[388177198,1759032632654,-1942.56031858,0.00032267,2]
[388177201,1759032632663,-1942.56031858,0.00032267,2]
[388177203,1759032632672,-1942.56031858,0.00032267,2]
[388177205,1759032632682,-1942.56031858,0.00032267,2]
[388177207,1759032632692,-1942.56031858,0.00032267,2]
[388177209,1759032632701,-1942.56031858,0.00032267,2]
[388177210,1759032632710,-1942.56031858,0.00032267,2]
[388177211,1759032632719,-1942.56031858,0.00032267,2]
[388177212,1759032632729,-276.39385292,0.00032267,2]
[388177213,1759032632739,-500.0,0.00032267,2]
[388177214,1759032632749,-500.0,0.00032267,2]
[388177215,1759032632758,-500.0,0.00032267,2]
[388177216,1759032632768,-500.0,0.00032267,2]
[388177217,1759032632782,-500.0,0.00032267,2]
[388177218,1759032632940,-500.0,0.00032267,2]
[388177219,1759032633001,-500.0,0.00032267,2]
[388177220,1759032633010,-1942.56031858,0.00032267,2]
[388177221,1759032633020,-500.0,0.00032267,2]
[388177222,1759032633029,-1942.56031858,0.00032267,2]
[388177223,1759032633038,-500.0,0.00032267,2]
[388177224,1759032633048,-500.0,0.00032267,2]
[388177225,1759032633057,-1942.56031858,0.00032267,2]
[388177226,1759032633068,-500.0,0.00032267,2]
[388177227,1759032633077,-500.0,0.00032267,2]
[388177228,1759032633087,-500.0,0.00032267,2]
[388177229,1759032633096,-500.0,0.00032267,2]
[388177230,1759032633106,-500.0,0.00032267,2]
[388177231,1759032633115,-500.0,0.00032267,2]
[388177232,1759032633125,-500.0,0.00032267,2]
[388177233,1759032633134,-1942.56031858,0.00032267,2]
[388177234,1759032633143,-500.0,0.00032267,2]
[388177235,1759032633152,-500.0,0.00032267,2]
[388177236,1759032633161,-500.0,0.00032267,2]
[388177237,1759032633170,-1942.56031858,0.00032267,2]
[388177238,1759032633185,-500.0,0.00032267,2]
[388177239,1759032633195,-500.0,0.00032267,2]
[388177240,1759032633204,-500.0,0.00032267,2]
[388177241,1759032633213,-500.0,0.00032267,2]
[388177242,1759032633222,-500.0,0.00032267,2]
[388177243,1759032633232,-500.0,0.00032267,2]
[388177244,1759032633241,-500.0,0.00032267,2]
[388177245,1759032633250,-500.0,0.00032267,2]
[388177246,1759032633260,-500.0,0.00032267,2]
[388177247,1759032633269,-500.0,0.00032267,2]
[388177248,1759032633279,-500.0,0.00032267,2]
[388177249,1759032633290,-500.0,0.00032267,2]
[388177250,1759032633299,-500.0,0.00032267,2]
[388177251,1759032633309,-500.0,0.00032267,2]
[388177252,1759032633319,-500.0,0.00032267,2]
[388177253,1759032633327,-500.0,0.00032267,2]
[388177254,1759032633336,-500.0,0.00032267,2]
[388177255,1759032633346,-500.0,0.00032267,2]
[388177256,1759032633355,-500.0,0.00032267,2]
[388177257,1759032633364,-500.0,0.00032267,2]
[388177258,1759032633373,-45.13652759,0.00032267,2]
[388177259,1759032633685,-454.86347241,0.00032267,2]
[388177260,1759032633695,-500.0,0.00032267,2]
[388177261,1759032633705,-500.0,0.00032267,2]
[388177262,1759032633714,-500.0,0.00032267,2]
[388177263,1759032633724,-500.0,0.00032267,2]
[388177264,1759032633734,-500.0,0.00032267,2]
[388177265,1759032633743,-500.0,0.00032267,2]
[388177266,1759032633753,-500.0,0.00032267,2]
[388177267,1759032633762,-518.80461842,0.00032267,2]
[388177268,1759032633771,-500.0,0.00032267,2]
[388177269,1759032633784,-500.0,0.00032267,2]
[388177270,1759032633793,-500.0,0.00032267,2]
[388177271,1759032633803,-500.0,0.00032267,2]
[388177272,1759032633813,-500.0,0.00032267,2]
[388177273,1759032633823,-500.0,0.00032267,2]
[388177274,1759032633833,-500.0,0.00032267,2]
[388177275,1759032633842,-500.0,0.00032267,2]
[388177276,1759032633851,-230.74019685,0.00032267,2]
[388177277,1759032633861,-2097.96514408,0.00032267,2]
[388177278,1759032633870,-2097.96514408,0.00032267,2]
[388177279,1759032633879,-2097.96514408,0.00032267,2]
[388177280,1759032633888,-2097.96514408,0.00032267,2]
[388177281,1759032633898,-2097.96514408,0.00032267,2]
[388177282,1759032633907,-2097.96514408,0.00032267,2]
[388177283,1759032633916,-2097.96514408,0.00032267,2]
[388177284,1759032633925,-2097.96514408,0.00032267,2]
[388177285,1759032633934,-500.0,0.00032267,2]
[388177286,1759032633944,-500.0,0.00032267,2]
[388177287,1759032633953,-500.0,0.00032267,2]
[388177288,1759032633962,-500.0,0.00032267,2]
[388177289,1759032633971,-500.0,0.00032267,2]
[388177290,1759032633980,-500.0,0.00032267,2]
[388177291,1759032633989,-2097.96514408,0.00032267,2]
[388177292,1759032633998,-500.0,0.00032267,2]
[388177293,1759032634007,-500.0,0.00032267,2]
[388177294,1759032634016,-500.0,0.00032267,2]
[388177295,1759032634025,-500.0,0.00032267,2]
[388177296,1759032634034,-250.0,0.00032267,2]
[388177297,1759032634044,-500.0,0.00032267,2]
[388177298,1759032634054,-500.0,0.00032267,2]
[388177299,1759032634063,-500.0,0.00032267,2]
[388177300,1759032634072,-500.0,0.00032267,2]
[388177301,1759032634081,-500.0,0.00032267,2]
[388177302,1759032634090,-500.0,0.00032267,2]
[388177303,1759032634099,-500.0,0.00032267,2]
[388177304,1759032634109,-500.0,0.00032267,2]
[388177305,1759032634118,-500.0,0.00032267,2]
[388177306,1759032634127,-500.0,0.00032267,2]
[388177307,1759032634136,-500.0,0.00032267,2]
[388177308,1759032634146,-500.0,0.00032267,2]
[388177309,1759032634155,-500.0,0.00032267,2]
[388177310,1759032634165,-500.0,0.00032267,2]
[388177311,1759032634174,-500.0,0.00032267,2]
[388177312,1759032634184,-500.0,0.00032267,2]
[388177313,1759032634193,-500.0,0.00032267,2]
[388177314,1759032634203,-500.0,0.00032267,2]
[388177315,1759032634212,-500.0,0.00032267,2]
[388177316,1759032634221,-500.0,0.00032267,2]
[388177317,1759032634230,-262.22564316,0.00032267,2]
[388177318,1759032634242,-237.77435684,0.00032267,2]
[388177319,1759032634252,-227.65132086,0.00032267,2]
[388177320,1759032634295,-250.91281768,0.00032267,2]
[388177355,1759032638366,-1007.29115327,0.00032267,3]
[388177357,1759032638375,-151.0,0.00032267,7]
[388177359,1759032638384,-161.857826,0.00032267,7]
[388177361,1759032638393,-44466.58652918,0.00032267,2]
[388177363,1759032638403,-34682.785642,0.00032268,2]
[388177365,1759032638412,-522.27706722,0.00032268,2]
[388177367,1759032638422,-151.889801,0.00032277,7]
[388177369,1759032638431,-152.60971,0.00032277,7]
[388177371,1759032638440,-158.086177,0.00032277,7]
[388177373,1759032638449,-242.173568,0.00032277,7]
[388177375,1759032638459,-242.173568,0.00032277,7]
[388177377,1759032638467,-242.173568,0.00032277,7]
[388177379,1759032638477,-242.173568,0.00032277,7]
[388177381,1759032638486,-242.173568,0.00032277,7]
[388177383,1759032638495,-242.173568,0.00032277,7]
[388177385,1759032638504,-242.173568,0.00032277,7]
[388177387,1759032638513,-242.173568,0.00032277,7]
[388177389,1759032638522,-242.173568,0.00032277,7]
[388177391,1759032638531,-242.173568,0.00032277,7]
[388177393,1759032638540,-242.173568,0.00032277,7]
[388177395,1759032638549,-242.173568,0.00032277,7]
[388177397,1759032638560,-242.173568,0.00032277,7]
[388177399,1759032638570,-242.173568,0.00032277,7]
[388177401,1759032638580,-242.173568,0.00032277,7]
[388177403,1759032638590,-242.173568,0.00032277,7]
[388177404,1759032638600,-242.173568,0.00032277,7]
[388177407,1759032638610,-242.173568,0.00032277,7]
[388177408,1759032638620,-242.173568,0.00032277,7]
[388177410,1759032638630,-242.173573,0.00032277,7]
[388177412,1759032638641,-151.0,0.00032277,7]
[388177414,1759032638651,-222.896796,0.00032277,7]
[388177415,1759032638663,-215.76628589,0.00032278,2]
[388177416,1759032638672,-151.0,0.00032278,7]
[388177417,1759032638682,-151.0,0.00032278,7]
[388177418,1759032638692,-225.166776,0.00032278,7]
[388177419,1759032638703,-151.0,0.00032278,7]
[388177420,1759032638712,-238.143104,0.00032278,7]
[388177421,1759032638721,-151.0,0.0003228,7]
[388177422,1759032638730,-151.0,0.0003228,7]
[388177423,1759032638739,-151.778399,0.0003228,7]
[388177424,1759032638748,-151.0,0.00032281,7]
[388177425,1759032638757,-151.0,0.00032281,7]
[388177426,1759032638767,-160.0,0.0003229,2]
[388177427,1759032638777,-153.336519,0.00032292,7]
[388177428,1759032638791,-509.60937698,0.00032293,2]
[388177429,1759032638800,-649.22701016,0.000323,120]
[388177430,1759032638809,-500.0,0.00032477,7]
[388177431,1759032638819,-168.288335,0.0003259,20]
[388177432,1759032638828,-649.22701016,0.000326,120]
[388177433,1759032638837,-168.0,0.0003264,2]
[388177434,1759032638847,-2062.68,0.00032876,4]
[388177435,1759032638856,-290.21867,0.00032877,2]
[388177436,1759032638868,-336.46473128,0.000329,5]
[388177437,1759032638877,-6681.8453922,0.00032911,2]
[388177438,1759032638887,-649.22701016,0.00033,120]
[388177439,1759032638896,-501.51570606,0.00033071,5]
[388177440,1759032638905,-500.0,0.00033071,5]
[388177441,1759032638914,-500.0,0.00033071,5]
[388177442,1759032638924,-327.50198725,0.00033071,5]
[388177443,1759032638934,-261.57275479,0.00033193,2]
[388177444,1759032638943,-338.786629,0.000332,15]
[388177445,1759032638952,-501.13470109,0.000332,5]
[388177446,1759032638961,-500.0,0.000332,5]
[388177447,1759032638971,-576.03187681,0.000332,5]
[388177448,1759032638979,-500.0,0.000332,5]
[388177449,1759032638988,-500.0,0.000332,5]
[388177450,1759032638998,-500.0,0.000332,5]
[388177451,1759032639007,-502.67784536,0.000332,2]
[388177452,1759032639017,-500.0,0.000332,5]
[388177453,1759032639026,-168.0,0.00033224,7]
[388177454,1759032639036,-642.7,0.00033299,14]
[388177455,1759032639046,-649.22701016,0.000333,120]
[388177456,1759032639055,-273.9563182,0.00033326,2]
[388177457,1759032639065,-500.97459163,0.0003338,5]
[388177458,1759032639075,-501.21203747,0.0003338,5]
[388177459,1759032639084,-500.38907024,0.0003338,5]
[388177460,1759032639094,-500.0,0.00033467,3]
[388177461,1759032639104,-150.47821237,0.00033467,5]
[388177462,1759032639113,-358.75608839,0.00033467,5]
[388177463,1759032639123,-503.50649994,0.00033467,5]
[388177464,1759032639132,-500.0,0.00033467,5]
[388177465,1759032639141,-168.288335,0.00033601,7]
[388177466,1759032639150,-1000.0,0.00033619,5]
[388177467,1759032639159,-517.04817062,0.00033619,5]
[388177468,1759032639169,-500.0,0.00033748,5]
[388177469,1759032639178,-215.29645056,0.00033748,5]
[388177470,1759032639188,-1000.0,0.00033748,5]
[388177471,1759032639197,-1000.0,0.00033748,5]
[388177472,1759032639207,-160.0,0.00033775,2]
[388177473,1759032639216,-1315.0,0.0003378,60]
[388177474,1759032639226,-168.288335,0.00033781,7]
[388177475,1759032639235,-642.7,0.00033847,15]
[388177476,1759032639245,-410.0,0.00033899,2]
[388177477,1759032639254,-205198.10821975,0.000339,2]
[388177478,1759032639264,-288.55354943,0.00033928,2]
[388177479,1759032639274,-512.98408788,0.00033928,2]
[388177480,1759032639283,-800.73609967,0.00033928,2]
[388177481,1759032639292,-413.38298989,0.00033928,2]
[388177482,1759032639301,-472.43770273,0.00033928,2]
[388177483,1759032639311,-737.4457266,0.00033928,2]
[388177484,1759032639320,-1409.98353602,0.00033988,2]
[388177485,1759032639329,-524.05,0.0003399,3]
[388177486,1759032639338,-262.02,0.0003399,3]
[388177487,1759032639347,-463.02,0.0003399,3]
[388177488,1759032639356,-4065.53732781,0.0003399,2]
[388177489,1759032639380,-30617.24831419,0.0003399,2]
[388177490,1759032639389,-522.27706722,0.0003399,2]
[388177491,1759032639399,-152.63164441,0.00033999,7]
[388177492,1759032639409,-151.0,0.00033999,7]
[388177493,1759032639418,-151.0,0.00033999,7]
[388177512,1759032639583,-151.0,0.00033999,7]
[388177516,1759032639636,-151.0,0.00033999,7]
[388177518,1759032639645,-151.0,0.00033999,7]
[388177520,1759032639654,-151.0,0.00033999,2]
[388177522,1759032639663,-151.0,0.00033999,7]
[388177524,1759032639673,-500.0,0.00033999,7]
[388177526,1759032639682,-500.0,0.00033999,7]
[388177528,1759032639691,-500.0,0.00033999,7]
[388177530,1759032639701,-500.0,0.00033999,7]
[388177532,1759032639711,-500.0,0.00033999,7]
[388177534,1759032639720,-28115.86000424,0.00034,3]
[388177536,1759032639730,-233.82138094,0.00034,3]
[388177539,1759032639739,-189.35579204,0.00034,3]
[388177541,1759032639749,-151.0,0.00034,14]
[388177543,1759032639759,-502.7389525,0.00034015,3]
[388177545,1759032639768,-1000.0,0.00034015,5]